bitfinex-derivatives/quotes_BTCF0:USTF0_20250902
["timestamp","ask_amount","ask_price","bid_price","bid_amount"]
[1756839780036,0.17697374,110720.0,110710.0,0.95255]
[1756839781442,0.17697374,110720.0,110710.0,0.91688]
[1756839781737,0.17697374,110720.0,110710.0,0.87008]
[1756839781938,0.17697374,110720.0,110710.0,0.04872]
[1756839782144,0.17697374,110720.0,110710.0,0.63952]
[1756839782145,0.19772422,110720.0,110710.0,0.63952]
[1756839782746,0.19772422,110720.0,110710.0,0.002]
[1756839783246,0.44772422,110720.0,110710.0,0.002]
[1756839783747,0.44772422,110720.0,110710.0,0.0254]
[1756839784346,0.90736572,110720.0,110710.0,0.002]
[1756839785346,0.09807,110700.0,110690.0,0.90393449]
[1756839785646,0.08433,110700.0,110690.0,1.29288449]
[1756839786338,0.08433,110700.0,110690.0,0.43240449]
[1756839786538,0.09807,110700.0,110690.0,0.07005449]
[1756839786744,0.09807,110700.0,110690.0,0.02005449]
[1756839787041,0.11881952,110700.0,110690.0,0.02005449]
[1756839787248,0.54325102,110700.0,110680.0,0.69911]
[1756839787547,0.03621,110690.0,110680.0,1.03911]
[1756839788548,0.08333,110690.0,110680.0,0.42335]
[1756839788850,0.08333,110690.0,110680.0,0.0244]
[1756839789046,0.08333,110690.0,110680.0,0.04672]
[1756839789349,0.08533,110690.0,110680.0,0.08341]
[1756839790750,0.08633,110690.0,110680.0,0.08341]
[1756839792247,0.02602,110690.0,110680.0,0.08341]
[1756839792451,0.04895,110690.0,110680.0,0.08341]
[1756839792745,0.08601,110690.0,110680.0,0.08341]
[1756839793545,0.04895,110690.0,110680.0,0.08341]
[1756839794154,0.08601,110690.0,110680.0,0.08341]
[1756839794453,0.08601,110690.0,110680.0,0.0244]
[1756839794648,0.08601,110690.0,110680.0,0.08305]
[1756839794855,0.04895,110690.0,110680.0,0.08305]
[1756839796047,0.08601,110690.0,110680.0,0.08305]
[1756839796449,0.08601,110690.0,110680.0,0.001]
[1756839796649,0.08601,110690.0,110680.0,0.02477]
[1756839796955,0.08601,110690.0,110680.0,0.08342]
[1756839797653,0.08601,110690.0,110680.0,0.33342]
[1756839797961,0.08735,110690.0,110680.0,0.7930615]
[1756839798163,0.08735,110690.0,110680.0,1.20054]
[1756839798354,0.05029,110690.0,110680.0,1.20054]
[1756839798551,0.08735,110690.0,110680.0,1.20054]
[1756839799459,0.05029,110690.0,110680.0,0.33342]
[1756839799656,0.08735,110690.0,110680.0,1.20058]
[1756839800158,0.10810232,110690.0,110680.0,1.20058]
[1756839800557,0.07104232,110690.0,110680.0,1.20058]
[1756839800760,0.04811232,110690.0,110680.0,1.20058]
[1756839801059,0.10810232,110690.0,110680.0,0.33342]
[1756839801259,0.10810232,110690.0,110680.0,1.20046]
[1756839802156,0.10810232,110690.0,110680.0,0.33342]
[1756839802361,0.10810232,110690.0,110680.0,1.20038]
[1756839802856,0.07104232,110690.0,110680.0,1.20038]
[1756839803061,0.02375232,110690.0,110680.0,1.20038]
[1756839803266,0.02375232,110690.0,110680.0,1.4100215]
[1756839803563,0.003,110690.0,110680.0,1.4100215]
[1756839804152,0.02736,110690.0,110680.0,0.5430615]
[1756839804361,0.10810266,110690.0,110680.0,0.25342]
[1756839804656,0.10810266,110690.0,110680.0,1.12018]
[1756839804856,0.02375266,110690.0,110680.0,1.28018]
[1756839805056,0.02375266,110690.0,110680.0,1.7398215]
[1756839805261,0.02375266,110690.0,110680.0,1.28018]
[1756839805466,0.02375266,110690.0,110680.0,1.7398215]
[1756839805763,0.02375266,110690.0,110680.0,0.8730615]
[1756839805959,0.02375266,110690.0,110680.0,1.7397415]
[1756839806364,0.10810266,110690.0,110680.0,0.41342]
[1756839806559,0.10810266,110690.0,110680.0,1.28006]
[1756839806965,0.10810266,110690.0,110680.0,1.7397015]
[1756839806966,0.02375266,110690.0,110680.0,1.7397015]
[1756839808568,0.003,110690.0,110680.0,1.7397015]
[1756839808771,0.02377828,110690.0,110680.0,1.7397015]
[1756839809067,0.02377828,110690.0,110680.0,1.9897015]
[1756839809671,0.02377828,110690.0,110680.0,1.27986]
[1756839809875,0.02377828,110690.0,110680.0,0.41342]
[1756839809876,0.10812828,110690.0,110680.0,0.41342]
[1756839810168,0.10812828,110690.0,110680.0,1.27978]
[1756839810169,0.08735,110690.0,110680.0,1.27978]
[1756839810760,0.05029,110690.0,110680.0,1.27978]
[1756839810960,0.02736,110690.0,110680.0,1.27978]
[1756839811263,0.06442,110690.0,110680.0,1.27978]
[1756839811870,0.02736,110690.0,110680.0,1.27978]
[1756839812073,0.04816328,110690.0,110680.0,1.27978]
[1756839812979,0.02380328,110690.0,110680.0,1.27978]
[1756839813169,0.10815328,110690.0,110680.0,0.41342]
[1756839813966,0.81779478,110690.0,110680.0,0.08342]
[1756839814174,0.35815328,110690.0,110680.0,0.04773]
[1756839814367,0.38815328,110690.0,110680.0,0.08342]
[1756839814978,0.38815328,110690.0,110680.0,0.5430615]
[1756839814979,0.05380328,110690.0,110680.0,0.5430615]
[1756839815178,0.02380328,110690.0,110680.0,1.213405]
[1756839815378,0.003,110690.0,110680.0,1.213405]
[1756839816667,0.003,110690.0,110680.0,1.27810091]
[1756839816974,0.003,110690.0,110680.0,1.02810091]
[1756839817578,0.003,110690.0,110680.0,1.213405]
[1756839819269,0.003,110690.0,110680.0,1.22520103]
[1756839819676,0.003,110690.0,110680.0,2.079165]
[1756839820179,0.003,110690.0,110680.0,1.213405]
[1756839820485,0.003,110690.0,110680.0,2.079085]
[1756839820771,0.003,110690.0,110680.0,2.079045]
[1756839820977,0.003,110690.0,110680.0,0.963405]
[1756839821179,0.003,110690.0,110680.0,2.078965]
[1756839821485,0.003,110690.0,110680.0,0.963405]
[1756839821774,0.003,110690.0,110680.0,1.27898]
[1756839821981,0.003,110690.0,110680.0,1.828965]
[1756839823380,0.003,110690.0,110680.0,1.828885]
[1756839823774,0.003,110690.0,110680.0,1.3692435]
[1756839823975,0.003,110690.0,110680.0,1.828885]
[1756839824576,0.003,110690.0,110680.0,2.078885]
[1756839825778,0.003,110690.0,110680.0,1.6192435]
[1756839825978,0.003,110690.0,110680.0,1.828605]
[1756839826579,0.003,110690.0,110680.0,1.3689235]
[1756839826580,0.0846,110690.0,110680.0,1.3689235]
[1756839826781,0.0846,110690.0,110680.0,1.828565]
[1756839826975,0.003,110690.0,110680.0,1.828565]
[1756839827285,0.3346,110690.0,110680.0,0.41342]
[1756839827470,0.3346,110690.0,110680.0,0.001]
[1756839827670,0.8242415,110690.0,110680.0,0.001]
[1756839827874,0.04766,110660.0,110650.0,0.02027423]
[1756839828071,0.8673015,110660.0,110620.0,0.06469591]
[1756839828276,0.8673015,110660.0,110620.0,0.01404643]
[1756839828277,0.4596415,110630.0,110620.0,0.01404643]
[1756839828677,1.11042006,110630.0,110620.0,0.01404643]
[1756839828877,1.18383945,110630.0,110620.0,0.01404643]
[1756839829077,0.72419795,110630.0,110600.0,0.31369]
[1756839829299,0.47419795,110630.0,110620.0,0.011]
[1756839829581,1.03126664,110630.0,110600.0,0.04945001]
[1756839829786,0.00018,110610.0,110600.0,0.09797001]
[1756839830086,0.01133061,110610.0,110600.0,0.09797001]
[1756839830290,0.25,110610.0,110600.0,0.09797001]
[1756839830888,0.001,110610.0,110600.0,0.09897001]
[1756839831491,0.001,110610.0,110600.0,0.55861151]
[1756839831686,0.001,110610.0,110600.0,0.56061151]
[1756839832090,0.001,110610.0,110600.0,0.10097001]
[1756839832687,0.001,110610.0,110600.0,0.56061151]
[1756839832991,0.001,110610.0,110600.0,0.90102031]
[1756839833186,0.001,110610.0,110600.0,0.81061151]
[1756839833690,0.001,110610.0,110600.0,1.22102031]
[1756839833889,0.001,110610.0,110600.0,0.90102031]
[1756839835496,0.001,110610.0,110600.0,1.36866207]
[1756839836079,0.001,110610.0,110600.0,1.37866207]
[1756839836284,0.001,110610.0,110600.0,1.67866207]
[1756839836991,0.001,110610.0,110600.0,2.54374207]
[1756839837496,0.001,110610.0,110600.0,1.67866207]
[1756839837694,0.001,110610.0,110600.0,1.83010044]
[1756839838094,0.001,110610.0,110600.0,2.54374207]
[1756839839188,0.001,110610.0,110600.0,2.29374207]
[1756839840598,0.07341939,110630.0,110620.0,0.0903924]
[1756839840599,0.03591939,110630.0,110620.0,0.0903924]
[1756839840894,0.0816,110660.0,110650.0,0.08398]
[1756839841096,0.4616,110660.0,110650.0,0.54762163]
[1756839841490,0.54656534,110660.0,110650.0,0.54762163]
[1756839841686,0.08496534,110660.0,110650.0,0.56165163]
[1756839841991,0.0227,110670.0,110660.0,0.1743397]
[1756839842187,0.01148321,110680.0,110670.0,0.08398]
[1756839842496,0.0816,110690.0,110680.0,0.08398]
[1756839842699,0.4016,110690.0,110680.0,0.54762163]
[1756839842895,0.6516,110690.0,110680.0,1.41258163]
[1756839843285,0.41268151,110690.0,110680.0,1.41258163]
[1756839843487,0.4236346,110690.0,110680.0,1.41258163]
[1756839843993,0.4326346,110690.0,110680.0,1.41258163]
[1756839844701,0.4326346,110690.0,110680.0,0.54762163]
[1756839844892,0.4326346,110690.0,110680.0,0.86484]
[1756839845403,0.4326346,110690.0,110680.0,0.88959]
[1756839845698,0.4476346,110690.0,110680.0,0.8658]
[1756839845891,0.1636946,110690.0,110680.0,1.41342163]
[1756839846093,0.1976346,110690.0,110680.0,1.41342163]
[1756839846396,0.1636946,110690.0,110680.0,1.41342163]
[1756839846593,0.1160346,110690.0,110680.0,1.41342163]
[1756839846898,0.1160346,110690.0,110680.0,0.54862163]
[1756839847097,0.024,110690.0,110680.0,2.57732666]
[1756839847704,0.024,110690.0,110680.0,1.71260666]
[1756839848298,0.024,110690.0,110680.0,2.57724666]
[1756839848494,0.024,110690.0,110680.0,1.71260666]
[1756839848796,0.024,110690.0,110680.0,1.51356503]
[1756839848797,0.015,110690.0,110680.0,1.51356503]
[1756839848993,0.34913,110690.0,110680.0,0.09498]
[1756839849193,0.34913,110690.0,110680.0,1.41318163]
[1756839849398,0.34013,110690.0,110680.0,1.41318163]
[1756839849597,0.01,110690.0,110680.0,1.50452503]
[1756839849998,0.01,110690.0,110680.0,1.41418163]
[1756839850299,0.0829965,110690.0,110680.0,1.41418163]
[1756839850496,0.01,110690.0,110680.0,1.96816666]
[1756839850892,0.004,110690.0,110680.0,1.10260666]
[1756839851195,0.012,110690.0,110680.0,1.50444503]
[1756839851400,0.34486,110690.0,110680.0,0.95042]
[1756839851591,0.34486,110690.0,110680.0,1.41406163]
[1756839851795,0.34486,110690.0,110680.0,0.54962163]
[1756839851995,0.34486,110690.0,110680.0,1.41402163]
[1756839853398,0.012,110690.0,110680.0,1.50436503]
[1756839854198,0.012,110690.0,110680.0,1.96800666]
[1756839854399,0.012,110690.0,110680.0,2.53800666]
[1756839855399,0.012,110690.0,110680.0,2.53780666]
[1756839856293,0.012,110690.0,110680.0,2.28780666]
[1756839856497,0.012,110690.0,110680.0,2.28776666]
[1756839857300,0.012,110690.0,110680.0,2.28768666]
[1756839857604,0.012,110690.0,110680.0,1.42360666]
[1756839857913,0.012,110690.0,110680.0,2.28768666]
[1756839858505,0.012,110690.0,110680.0,1.42360666]
[1756839858698,0.012,110690.0,110680.0,2.28768666]
[1756839858903,0.012,110690.0,110680.0,1.42360666]
[1756839859099,0.012,110690.0,110680.0,2.19726326]
[1756839859304,0.012,110690.0,110680.0,1.82396503]
[1756839859505,0.012,110690.0,110680.0,2.28760666]
[1756839860011,0.012,110690.0,110680.0,1.82396503]
[1756839860915,0.09486,110690.0,110680.0,1.73358163]
[1756839861111,0.34486,110690.0,110680.0,1.73350163]
[1756839861803,0.31029,110690.0,110680.0,1.73350163]
[1756839862001,0.31029,110690.0,110680.0,2.28748666]
[1756839862002,0.262,110690.0,110680.0,2.28748666]
[1756839862311,0.012,110690.0,110680.0,2.28748666]
[1756839865615,0.012,110690.0,110680.0,1.82368503]
[1756839866613,0.06029,110690.0,110680.0,1.82364503]
[1756839866810,0.012,110690.0,110680.0,2.28728666]
[1756839867411,0.012,110690.0,110680.0,2.55108666]
[1756839867612,0.012,110690.0,110680.0,2.08744503]
[1756839867814,0.012,110690.0,110680.0,1.6238034]
[1756839868010,0.012,110690.0,110680.0,2.55108666]
[1756839870207,0.012,110690.0,110680.0,2.55092666]
[1756839871409,0.03374281,110690.0,110680.0,2.55092666]
[1756839871915,0.03374281,110690.0,110680.0,1.68740666]
[1756839872116,0.03374281,110690.0,110680.0,2.55084666]
[1756839876122,0.012,110690.0,110680.0,2.55084666]
[1756839876313,0.03377379,110690.0,110680.0,2.55084666]
[1756839877418,0.012,110690.0,110680.0,2.55084666]
[1756839880118,0.07377095,110710.0,110700.0,0.65184863]
[1756839880315,0.02177703,110710.0,110700.0,2.34844896]
[1756839880528,0.02177703,110710.0,110700.0,1.88480733]
[1756839880718,0.048,110730.0,110720.0,0.0842]
[1756839880925,0.06977369,110730.0,110720.0,1.41084163]
[1756839881124,0.10718369,110730.0,110720.0,0.54784163]
[1756839881427,0.10718369,110730.0,110720.0,1.37362163]
[1756839881621,0.11845488,110730.0,110720.0,1.41084163]
[1756839881925,0.19157679,110730.0,110720.0,1.41080163]
[1756839882828,0.19157679,110730.0,110720.0,0.54784163]
[1756839883126,0.19757679,110730.0,110720.0,1.41176163]
[1756839883325,0.20657679,110730.0,110720.0,1.41276163]
[1756839883928,0.20657679,110730.0,110720.0,1.41176163]
[1756839884124,0.20257679,110730.0,110720.0,1.41176163]
[1756839884332,0.19357679,110730.0,110720.0,1.41076163]
[1756839884630,0.19557679,110730.0,110720.0,1.41076163]
[1756839885933,0.19757679,110730.0,110720.0,1.41176163]
[1756839886130,0.20057679,110730.0,110720.0,1.41276163]
[1756839886326,0.04853559,110740.0,110730.0,0.0903024]
[1756839886531,0.04853559,110760.0,110730.0,0.99047081]
[1756839886827,0.01144181,110760.0,110750.0,0.56070163]
[1756839887031,1.60178,110780.0,110770.0,0.04616]
[1756839887219,2.01043586,110780.0,110770.0,0.54702163]
[1756839887930,1.96178,110780.0,110770.0,0.54702163]
[1756839888140,1.92437,110780.0,110770.0,0.54702163]
[1756839888339,1.96178,110780.0,110770.0,0.54702163]
[1756839888545,2.03294817,110780.0,110770.0,0.54702163]
[1756839888742,2.03294817,110780.0,110770.0,0.08338]
[1756839888947,2.03294817,110780.0,110770.0,1.17222163]
[1756839889449,2.04436199,110780.0,110770.0,1.17222163]
[1756839889646,1.97319382,110780.0,110770.0,1.17222163]
[1756839889848,1.98219382,110780.0,110770.0,1.17322163]
[1756839890046,1.98319382,110780.0,110770.0,1.17322163]
[1756839890248,1.98319382,110780.0,110770.0,0.70958]
[1756839890434,1.97419382,110780.0,110770.0,0.70858]
[1756839890639,1.97419382,110780.0,110770.0,1.17222163]
[1756839892251,1.97419382,110780.0,110770.0,0.08338]
[1756839892448,1.97419382,110780.0,110770.0,1.41326163]
[1756839892748,1.97419382,110780.0,110770.0,0.94962]
[1756839893049,1.97419382,110780.0,110770.0,1.41326163]
[1756839893949,1.97419382,110780.0,110770.0,0.54702163]
[1756839894148,1.97419382,110780.0,110770.0,1.41242163]
[1756839895451,1.97419382,110780.0,110770.0,1.40802686]
[1756839895845,0.43678382,110780.0,110770.0,1.40802686]
[1756839896043,0.06406382,110780.0,110770.0,1.40706686]
[1756839896245,0.06406382,110780.0,110770.0,1.40702686]
[1756839896956,0.10147382,110780.0,110770.0,1.40702686]
[1756839897339,0.12419382,110780.0,110770.0,1.40702686]
[1756839897543,0.12419382,110780.0,110770.0,1.40690686]
[1756839898448,0.06406382,110780.0,110770.0,1.40690686]
[1756839898851,0.03975382,110780.0,110770.0,1.40690686]
[1756839899151,0.01834,110780.0,110770.0,1.49717666]
[1756839899542,0.01834,110780.0,110770.0,1.49821666]
[1756839900046,0.01834,110780.0,110770.0,1.40794686]
[1756839900243,0.01958216,110780.0,110770.0,0.94858]
[1756839900442,0.01958216,110780.0,110770.0,1.40782686]
[1756839900852,0.01958216,110780.0,110770.0,1.40766686]
[1756839901043,0.01958216,110780.0,110770.0,1.40746686]
[1756839901239,0.01958216,110780.0,110770.0,1.49773666]
[1756839902639,0.01958216,110780.0,110770.0,0.54262686]
[1756839902847,0.10402216,110780.0,110770.0,0.34718]
[1756839903053,0.10402216,110780.0,110770.0,1.16998]
[1756839903844,0.10402216,110780.0,110770.0,0.28718]
[1756839904050,0.10402216,110780.0,110770.0,1.16138]
[1756839904357,0.10402216,110780.0,110770.0,1.2486]
[1756839905356,0.35402216,110780.0,110770.0,1.56138]
[1756839905758,0.10402216,110780.0,110770.0,1.56138]
[1756839906560,0.10402216,110780.0,110770.0,1.56082]
[1756839907060,0.10402216,110780.0,110770.0,1.56042]
[1756839908056,0.37556136,110780.0,110770.0,1.21038]
[1756839908258,0.83480822,110780.0,110770.0,0.02338]
[1756839908462,0.83480822,110780.0,110760.0,0.03567]
[1756839908762,0.08176,110770.0,110760.0,0.46354]
[1756839908951,0.1032992,110770.0,110760.0,0.46354]
[1756839909355,0.10454136,110770.0,110760.0,0.46354]
[1756839910258,0.00324216,110770.0,110760.0,0.46354]
[1756839910459,0.00324216,110770.0,110760.0,1.26306486]
[1756839910460,0.02482244,110770.0,110760.0,1.26306486]
[1756839910663,0.02482244,110770.0,110760.0,1.22306486]
[1756839910664,0.00324216,110770.0,110760.0,1.22306486]
[1756839910963,0.00524216,110770.0,110760.0,1.35306486]
[1756839911264,0.00524216,110770.0,110760.0,1.60306486]
[1756839911964,0.00624216,110770.0,110760.0,1.60306486]
[1756839912564,0.00324216,110770.0,110760.0,1.60306486]
[1756839912864,0.00524216,110770.0,110760.0,1.60306486]
[1756839913462,0.00524216,110770.0,110760.0,2.14714486]
[1756839913668,0.00524216,110770.0,110760.0,1.34746]
[1756839913868,0.05341216,110770.0,110760.0,1.34842]
[1756839914462,0.08808216,110770.0,110760.0,1.34842]
[1756839915364,0.08808216,110770.0,110760.0,0.4613]
[1756839915563,0.33808216,110770.0,110760.0,0.4613]
[1756839915770,0.33808216,110770.0,110760.0,0.9675]
[1756839916670,0.33808216,110770.0,110760.0,0.0813]
[1756839916871,0.35856831,110770.0,110760.0,0.0813]
[1756839917171,0.35856831,110770.0,110760.0,0.78919]
[1756839917371,0.35856831,110770.0,110760.0,0.82486]
[1756839918073,0.35856831,110770.0,110760.0,0.83486]
[1756839919176,0.02572831,110770.0,110760.0,1.62438496]
[1756839919371,1.61542335,110810.0,110800.0,0.04783]
[1756839919372,1.55904,110810.0,110800.0,0.04783]
[1756839919564,1.55904,110810.0,110800.0,1.51731246]
[1756839919565,0.02048055,110810.0,110800.0,1.51731246]
[1756839919772,0.03467,110830.0,110800.0,1.53188246]
[1756839919966,0.44331786,110830.0,110820.0,0.0835]
[1756839920472,0.41982246,110830.0,110820.0,1.42778686]
[1756839920974,0.2293446,110830.0,110820.0,1.42778686]
[1756839921368,0.2323446,110830.0,110820.0,1.42778686]
[1756839922367,0.175,110830.0,110820.0,1.42778686]
[1756839922671,0.005,110830.0,110820.0,1.42778686]
[1756839922979,0.005,110830.0,110820.0,1.51801616]
[1756839923171,0.005,110830.0,110820.0,1.67778686]
[1756839923476,0.005,110830.0,110820.0,0.79274686]
[1756839923674,0.005,110830.0,110820.0,0.15553754]
[1756839923868,0.02937,110830.0,110820.0,1.4997444]
[1756839924367,0.01645444,110830.0,110820.0,0.6147844]
[1756839924570,0.01645444,110830.0,110820.0,1.4997044]
[1756839924874,0.005,110830.0,110820.0,1.4993844]
[1756839925968,0.005,110830.0,110820.0,1.4992644]
[1756839926162,0.005,110830.0,110820.0,1.76910778]
[1756839926768,0.005,110830.0,110820.0,0.88462778]
[1756839926972,0.005,110830.0,110820.0,1.76834778]
[1756839927676,0.005,110830.0,110820.0,1.85857708]
[1756839927877,0.005,110830.0,110820.0,2.17857708]
[1756839929277,0.005,110830.0,110820.0,1.71933022]
[1756839929478,0.005,110830.0,110820.0,2.16857708]
[1756839930874,1.59390085,110860.0,110850.0,0.0835]
[1756839931072,1.59390085,110860.0,110850.0,1.42866686]
[1756839931073,1.66390085,110860.0,110850.0,1.42866686]
[1756839931375,1.66390085,110860.0,110850.0,1.43170686]
[1756839932074,1.66890085,110860.0,110850.0,1.43270686]
[1756839932574,1.67390085,110860.0,110850.0,0.0845]
[1756839933082,1.92390085,110860.0,110850.0,0.001]
[1756839933578,1.94422811,110860.0,110830.0,0.47951367]
[1756839933775,1.94422811,110860.0,110830.0,0.95625681]
[1756839933776,0.08284,110840.0,110830.0,0.95625681]
[1756839933973,0.08284,110840.0,110830.0,1.39052367]
[1756839934278,0.08284,110850.0,110840.0,0.0835]
[1756839934581,0.08284,110850.0,110840.0,0.54274686]
[1756839935478,0.08284,110850.0,110840.0,0.50707686]
[1756839935676,0.001,110840.0,110830.0,0.94409681]
[1756839935876,0.08384,110840.0,110830.0,1.45117367]
[1756839936074,0.08584,110840.0,110830.0,1.45117367]
[1756839936276,0.003,110840.0,110830.0,1.45117367]
[1756839936479,0.002,110840.0,110830.0,1.79139477]
[1756839936875,0.002,110840.0,110830.0,1.81139477]
[1756839937073,0.002,110850.0,110840.0,0.173713]
[1756839937382,0.01106085,110860.0,110850.0,0.03567]
[1756839937586,1.53467,110870.0,110850.0,1.46414686]
[1756839937779,1.67284,110870.0,110860.0,0.54274686]
[1756839939081,1.67884,110870.0,110860.0,0.54374686]
[1756839939280,1.6897885,110870.0,110860.0,0.54374686]
[1756839939589,1.9397885,110870.0,110860.0,0.92228]
[1756839939881,1.9447885,110870.0,110860.0,0.92328]
[1756839940380,1.96511751,110870.0,110860.0,0.92328]
[1756839941280,1.96511751,110870.0,110860.0,0.002]
[1756839941577,1.96511751,110870.0,110840.0,0.60212]
[1756839941783,0.08473,110850.0,110840.0,0.60212]
[1756839942284,0.08473,110850.0,110840.0,0.6884]
[1756839942585,0.08473,110850.0,110840.0,0.65102]
[1756839942878,0.06672,110850.0,110840.0,0.91796]
[1756839943085,0.10247,110850.0,110840.0,0.91796]
[1756839943280,0.10647,110850.0,110840.0,0.91796]
[1756839944386,0.12682354,110850.0,110840.0,0.94233]
[1756839944776,0.08473,110840.0,110830.0,0.08628]
[1756839944986,0.08473,110840.0,110830.0,1.46268686]
[1756839945187,0.08473,110840.0,110830.0,1.47268686]
[1756839945384,0.08473,110840.0,110830.0,1.46268686]
[1756839945683,0.007,110850.0,110830.0,2.11290806]
[1756839945872,0.09173,110850.0,110840.0,0.54552686]
[1756839946077,0.06933741,110850.0,110840.0,0.54552686]
[1756839946276,0.02035741,110850.0,110840.0,0.63573986]
[1756839946789,1.5599285,110870.0,110860.0,0.0489]
[1756839946978,1.75604857,110870.0,110860.0,1.46044686]
[1756839948782,1.76304857,110870.0,110860.0,1.46144686]
[1756839949388,1.76904857,110870.0,110860.0,1.46244686]
[1756839949586,1.62904857,110870.0,110860.0,1.46244686]
[1756839949781,1.62904857,110870.0,110860.0,1.0032]
[1756839949987,1.62904857,110870.0,110860.0,0.93881]
[1756839950192,1.87904857,110870.0,110860.0,0.93881]
[1756839950381,1.87904857,110870.0,110860.0,0.02637]
[1756839950579,1.87904857,110870.0,110860.0,0.002]
[1756839950782,2.03904857,110870.0,110860.0,0.002]
[1756839950986,2.19904857,110870.0,110860.0,0.002]
[1756839951679,2.19904857,110870.0,110830.0,0.47909589]
[1756839951680,0.04898,110840.0,110830.0,0.54552686]
[1756839951883,0.04898,110840.0,110820.0,0.0489]
[1756839951884,0.08473,110830.0,110820.0,0.0489]
[1756839952177,0.08473,110830.0,110810.0,1.78554]
[1756839952384,0.03575,110820.0,110810.0,2.65932]
[1756839952593,0.03575,110820.0,110810.0,3.15594686]
[1756839952785,0.03575,110820.0,110810.0,2.6967]
[1756839953289,0.003,110840.0,110810.0,3.11856686]
[1756839953486,0.08473,110830.0,110820.0,0.08628]
[1756839953682,0.11518535,110830.0,110820.0,0.08628]
[1756839954089,0.08143535,110830.0,110820.0,0.54552686]
[1756839954585,0.03245535,110830.0,110820.0,0.54552686]
[1756839954888,0.03345535,110830.0,110820.0,0.54552686]
[1756839955091,0.11818535,110830.0,110820.0,0.08628]
[1756839955693,0.12018535,110830.0,110820.0,0.08628]
[1756839956086,0.03575,110820.0,110810.0,2.65788]
[1756839956287,0.05620535,110820.0,110810.0,2.65788]
[1756839956492,0.05620535,110820.0,110810.0,2.69526]
[1756839957591,0.05620535,110820.0,110810.0,3.15730247]
[1756839957797,0.05720535,110820.0,110810.0,3.15730247]
[1756839957996,0.05820535,110820.0,110810.0,3.15730247]
[1756839960197,0.05820535,110820.0,110810.0,2.69526]
[1756839960397,0.08473,110810.0,110800.0,0.08628]
[1756839960704,0.08473,110810.0,110800.0,0.99288]
[1756839960892,0.10514794,110810.0,110800.0,0.99288]
[1756839961606,0.08473,110810.0,110800.0,0.99288]
[1756839961900,0.10514043,110810.0,110800.0,0.99388]
[1756839962095,0.08473,110810.0,110800.0,0.99388]
[1756839962398,0.06031908,110810.0,110800.0,1.45592247]
[1756839962597,0.1694414,110810.0,110800.0,1.45592247]
[1756839962799,0.08473,110810.0,110800.0,1.45592247]
[1756839963000,0.04898,110810.0,110800.0,1.45592247]
[1756839963206,0.08473,110820.0,110810.0,0.08628]
[1756839963504,0.03039918,110820.0,110810.0,0.54832247]
[1756839963700,0.01,110820.0,110810.0,0.08628]
[1756839963901,0.01,110820.0,110810.0,0.54832247]
[1756839964300,0.013,110820.0,110810.0,0.54832247]
[1756839964499,0.016,110820.0,110810.0,0.54832247]
[1756839964801,0.02719906,110820.0,110810.0,0.54832247]
[1756839965197,0.02419906,110820.0,110810.0,0.54832247]
[1756839965398,0.02519906,110820.0,110810.0,0.54832247]
[1756839965797,0.09642095,110820.0,110810.0,0.54832247]
[1756839966096,0.02519906,110820.0,110810.0,0.54832247]
[1756839966404,0.004,110820.0,110810.0,0.88855987]
[1756839966599,0.004,110820.0,110810.0,0.79832247]
[1756839967994,0.003,110820.0,110810.0,0.79832247]
[1756839968199,0.002,110820.0,110810.0,0.79832247]
[1756839969402,0.002,110820.0,110810.0,0.88855987]
[1756839970095,0.002,110820.0,110810.0,0.79832247]
[1756839970296,0.002,110820.0,110810.0,1.70096247]
[1756839970902,0.002,110820.0,110810.0,1.79119987]
[1756839971704,0.002,110820.0,110810.0,1.70052247]
[1756839971897,0.002,110820.0,110810.0,1.79075987]
[1756839972704,0.002,110820.0,110810.0,1.88085911]
[1756839972906,0.002,110820.0,110810.0,0.97865911]
[1756839973202,0.0726452,110840.0,110810.0,4.35994158]
[1756839973407,1.5,110870.0,110860.0,0.1743267]
[1756839973700,0.03412,110910.0,110880.0,0.08413]
[1756839973900,0.08025,110900.0,110890.0,1.05933247]
[1756839974100,0.47064663,110900.0,110890.0,0.54617247]
[1756839974307,0.08025,110890.0,110880.0,0.0481]
[1756839974498,0.17349724,110890.0,110880.0,0.63941]
[1756839975092,0.17349724,110890.0,110880.0,0.08413]
[1756839975295,0.17349724,110890.0,110880.0,0.98549]
[1756839975597,0.17349724,110890.0,110880.0,1.44725247]
[1756839976198,0.18455313,110890.0,110880.0,1.44725247]
[1756839976700,0.18955313,110890.0,110880.0,1.44725247]
[1756839977705,0.10930313,110890.0,110880.0,1.44725247]
[1756839978206,0.11330313,110890.0,110880.0,1.44569247]
[1756839978906,0.15943313,110890.0,110880.0,0.08413]
[1756839979109,0.19355313,110890.0,110880.0,0.96981247]
[1756839979410,0.15943313,110890.0,110880.0,0.96981247]
[1756839980310,0.15943313,110890.0,110880.0,0.08413]
[1756839980508,0.19355313,110890.0,110880.0,1.44485247]
[1756839980712,0.15943313,110890.0,110880.0,0.54617247]
[1756839980904,0.15943313,110890.0,110880.0,1.44405247]
[1756839981105,0.15943313,110890.0,110880.0,0.54617247]
[1756839981403,0.19355313,110890.0,110880.0,1.44369247]
[1756839981814,0.15943313,110890.0,110880.0,1.44369247]
[1756839982608,0.11330313,110890.0,110880.0,1.44369247]
[1756839982905,0.11330313,110890.0,110880.0,1.99591544]
[1756839982906,0.02005589,110890.0,110880.0,1.99591544]
[1756839983308,0.01505589,110890.0,110880.0,1.99591544]
[1756839983910,0.01505589,110890.0,110880.0,0.08413]
[1756839984213,0.01505589,110890.0,110880.0,1.44225247]
[1756839985706,0.01505589,110890.0,110880.0,1.44197247]
[1756839987418,0.01505589,110890.0,110880.0,1.44109247]
[1756839988819,0.01505589,110890.0,110880.0,1.43989247]
[1756839989416,0.01505589,110890.0,110880.0,0.54617247]
[1756839989617,0.01505589,110890.0,110880.0,1.43917247]
[1756839990115,0.01505589,110890.0,110880.0,0.54617247]
[1756839990317,0.01505589,110890.0,110880.0,1.43817247]
[1756839990918,0.01505589,110890.0,110880.0,0.54617247]
[1756839991118,0.01505589,110890.0,110880.0,1.43769247]
[1756839992914,0.09530589,110890.0,110880.0,0.97561]